Cogmind - Beta 16.1 @@@ ROGUE MODE // 2026.04.01 @ 13:14:35 Player: Rainbow Dash Result: Destroyed by Y-54 Guardian with Gatling Laser Performance ------------- Evolutions (0) 0 Regions Visited (3) 600 Robots Destroyed (35) 175 Value Destroyed (823) 823 Prototype IDs (1) 20 Alien Tech Used (0) 0 Bonus (0) 0 TOTAL SCORE: 1618 Bonus ------- None Cogmind --------- Core Integrity 0/250 Matter 273/300 Energy 180/180 System Corruption 0% Temperature Warm (100) Movement Walking (190) Ox1 Location -7/Recycling Parts ------- > --- POWER (1) -------- Meta Core > --- PROPULSION (2+1) - Improved Carbon-fiber Leg > --- UTILITY (2+1) ---- Medium Storage Unit Subdweller Optics System Shield (+) > --- WEAPON (2+1) ----- Improved Light Cannon Improved Light Cannon > --- INVENTORY (10) --- Subdweller Power Source Subdweller Monowheel Subdweller Monowheel Trap Scanner Subdweller Laser Subdweller Machine Gun Improved Light Cannon Improved Light Cannon Grenade Launcher Power Maul Peak State ------------ > --- POWER ------------ Meta Core > --- PROPULSION ------- Improved Carbon-fiber Leg Improved Carbon-fiber Leg > --- UTILITY ---------- Medium Storage Unit Subdweller Optics System Shield > --- WEAPON ----------- Improved Light Cannon Improved Light Cannon > --- INVENTORY -------- Subdweller Power Source Subdweller Monowheel Subdweller Monowheel Trap Scanner Subdweller Laser Subdweller Machine Gun Improved Light Cannon Improved Light Cannon Grenade Launcher Power Maul [Rating: 33] Favorites ----------- Power Ion Engine Engine Ion Engine Power Core Meta Core Propulsion Aluminum Leg Leg Aluminum Leg Wheel Wheel Utility Medium Storage Unit Device Subdweller Optics Storage Medium Storage Unit Hackware System Shield Weapon Improved Light Cannon Energy Gun Small Laser Ballistic Cannon Improved Light Cannon Launcher Grenade Launcher Slashing Weapon Mining Claw Build | -11 -10 -10 -7 ------- Run | Yrd Mat Sub Rec Slots Evolved . | . . . . Power . | . . . . Propulsion . | . . . . Utility . | . . . . Weapon . | . . . . Parts Attached 38 | 7 15 13 3 Power 7 | 1 2 4 . Engine 5 | 1 1 3 . Core 2 | . 1 1 . Reactor . | . . . . Propulsion 12 | 2 5 3 2 Treads . | . . . . Leg 11 | 2 5 2 2 Wheel 1 | . . 1 . Hover . | . . . . Flight . | . . . . Utility 8 | 2 3 2 1 Device 5 | 1 2 2 . Storage 2 | 1 1 . . Processor . | . . . . Hackware 1 | . . . 1 Protection . | . . . . Artifact . | . . . . Weapon 11 | 2 5 4 . Energy Gun 3 | 2 1 . . Energy Cannon . | . . . . Ballistic Gun . | . . . . Ballistic Cannon 6 | . 3 3 . Launcher 1 | . 1 . . Special Weapon . | . . . . Impact Weapon . | . . . . Slashing Weapon 1 | . . 1 . Piercing Weapon . | . . . . Special Melee Weapon . | . . . . Unidentified Prototypes 1 | . . 1 . Parts Lost 11 | . 2 8 1 Power 2 | . . 2 . Propulsion 5 | . 1 3 1 Utility 2 | . 1 1 . Weapon 2 | . . 2 . Highest Loss Streak 3 | . 2 3 1 To Critical Strikes . | . . . . Average Backups 8 | 1 7 9 9 Power . | . 1 . 1 Propulsion 1 | . . 1 2 Utility . | . . 1 . Weapon 5 | . 5 6 5 Tool/Special . | . . . . Unused Backups 16 | . 4 3 9 Power 1 | . . . 1 Propulsion 2 | . . . 2 Utility 4 | . 1 1 2 Weapon 9 | . 3 2 4 Tool/Special . | . . . . Average Slot Usage (%) 90 | . 97 91 74 Engine 7 | . 8 8 . Core 5 | . 5 4 10 Leg 23 | . 27 22 19 Wheel 2 | . . 3 . Device 11 | . 12 11 10 Storage 12 | . 14 13 10 Energy Gun 3 | . 12 . . Ballistic Cannon 22 | . 15 26 20 Peak Build Rating 33 | 9 12 23 33 Average Rating 14 | 5 9 13 31 On Entrance 11 | . 9 12 23 Avg Prop Armor Cover (%) 5 | . . 5 . Naked Turns . | . . . . Heaviest Build 26 | 13 24 26 26 Greatest Support 36 | 20 20 20 36 Greatest Overweight (x) 2 | . 1 2 2 Average Overweight (x) . | . . 1 . Largest Inventory Capacity 10 | 8 10 10 10 Average Capacity 9 | 7 9 10 10 Most Carried 10 | 3 10 10 10 Average Carried 8 | 1 7 9 9 Final Capacity 10 | 8 10 10 10 Final Carried 10 | 2 10 9 10 Class Distribution -------------------- 100% | Mutant Dominant Class ---------------- Mutant | -10/Materials Mutant | -10/Subcaves Mutant | -7/Recycling Resources | -11 -10 -10 -7 ----------- Run | Yrd Mat Sub Rec Matter Collected 1399 | 202 459 610 128 Remotely . | . . . . Salvage Created 824 | 47 457 93 227 Parts 41 | 6 25 8 2 Haulers Intercepted . | . . . . Recyclers Shooed 1 | . 1 . . Parts Field Recycled . | . . . . Retrieved Matter . | . . . . Parts Self-Destructed 10 | . . 10 . Prevented . | . . . . Parts Restored . | . . . . Kills | -11 -10 -10 -7 ------- Run | Yrd Mat Sub Rec Combat Hostiles Destroyed 23 | . 12 11 . Guns 5 | . 5 . . Cannons 12 | . 5 7 . AOE 6 | . 2 4 . Classes Destroyed 9 | 1 5 2 1 Worker 2 | . 2 . . Builder 1 | . 1 . . Tunneler 2 | 2 . . . Recycler 3 | . . . 3 Turret 2 | . . 2 . Watcher 2 | . 2 . . Swarmer 7 | . 3 4 . Grunt 9 | . 9 . . Subdweller 7 | . . 7 . Best Kill Streak 5 | 2 5 4 3 Combat Bots Only 4 | . 3 4 . Max Kills in Single Turn 3 | 1 3 3 1 Gunslinging . | . . . . Exploded 3 | . 1 3 . Melee . | . . . . Uniques/NPCs Destroyed . | . . . . Combat | -11 -10 -10 -7 -------- Run | Yrd Mat Sub Rec Hostile Shots Fired 191 | . 49 103 39 Missed 69 | . 12 45 12 Hits 122 | . 37 58 27 Projectile 122 | . 37 58 27 AOE 3 | . . 3 . Critical Strikes 2 | . 1 1 . Damage Taken 1665 | . 436 1017 212 Core 254 | . 122 75 57 Absorbed by Shields . | . . . . Core Remaining (%) 100 | 100 . . . Volleys Fired 114 | 3 45 57 9 Largest 2 | 2 2 2 2 Hottest 80 | 80 80 66 66 Shots Fired 223 | 6 88 111 18 Gun 70 | 6 64 . . Cannon 148 | . 22 108 18 Launcher 5 | . 2 3 . Special . | . . . . Kinetic 148 | . 22 108 18 Thermal 70 | 6 64 . . Explosive 5 | . 2 3 . Electromagnetic . | . . . . Robot Hit Streak 15 | 5 11 15 7 Robot Miss Streak 4 | 1 4 3 1 Penetration Max . | . . . . Secondary Targets . | . . . . Shots Hit Robots 143 | 5 55 70 13 Core Hits 50 | 2 23 21 4 Critical Kills . | . . . . Critical Parts Destroyed . | . . . . Critical Strikes 5 | . . 4 1 Blast 5 | . . 4 1 Melee Attacks 4 | . . 4 . Impact . | . . . . Slashing 4 | . . 4 . Piercing . | . . . . Sneak Attacks . | . . . . Combat Hostiles . | . . . . Follow-up Attacks . | . . . . Damage Inflicted 2918 | 57 915 1659 287 Guns 540 | 57 483 . . Cannons 1965 | . 241 1458 266 Explosions 383 | . 182 201 . Melee . | . . . . Ramming 30 | . 9 . 21 Kinetic 1965 | . 241 1458 266 Thermal 540 | 57 483 . . Explosive 383 | . 182 201 . Electromagnetic . | . . . . Impact . | . . . . Slashing . | . . . . Piercing . | . . . . Highest Corruption . | . . . . Average Corruption . | . . . . Corruption Purged . | . . . . Corruption Blocked . | . . . . Overload Shots . | . . . . Overflow Damage 11 | . . 11 . Projectiles 7 | . . 7 . Explosions 4 | . . 4 . Melee . | . . . . Knockbacks 13 | . 1 10 2 Impact . | . . . . Kinetic 13 | . 1 10 2 Secondary . | . . . . Self-Inflicted Damage . | . . . . Shots . | . . . . Rammed . | . . . . Targets Rammed 3 | . 1 . 2 Kicked 3 | . 1 . 2 Crushed . | . . . . Highest Temperature 250 | 54 250 . 82 Average Temperature 70 | 29 86 . 23 Received Heat Transfer 456 | . 204 174 78 Siege Activations . | . . . . Martial Activations . | . . . . Shielding Activations . | . . . . Robots Disrupted . | . . . . Combat Hostiles . | . . . . Robots Corrupted . | . . . . Combat Hostiles . | . . . . Parts Fried . | . . . . Impact Corruptions . | . . . . Robots Melted . | . . . . Combat Hostiles . | . . . . Parts Melted 3 | . 3 . . Heat Transferred 1225 | 125 1100 . . Parts Sabotaged . | . . . . Parts Stolen . | . . . . Parts Stripped . | . . . . Power Chain Reactions . | . . . . Alert | -11 -10 -10 -7 ------- Run | Yrd Mat Sub Rec Maximum Alert Level . | . . . . Low Security (%) 100 | 100 100 . 100 Level 1 . | . . . . Level 2 . | . . . . Level 3 . | . . . . Level 4 . | . . . . Level 5 . | . . . . High Security . | . . . . Max Security . | . . . . Peak Influence 99 | 10 99 . 46 Initial . | . . . . Average 26 | . 36 . 10 Influence Increases 767 | 10 380 225 152 Destroy 0b10 Robot/C 360 | . 240 120 . Destroy 0b10 Robot/NC 50 | 10 25 . 15 Destroy Leader 54 | . 54 . . Successful Hack 60 | . 15 . 45 Select Force Hacks 90 | . . . 90 Disable Machine 15 | . 15 . . Destroy Structure 18 | . 16 . 2 Lose Combat Pursuer 120 | . 15 105 . Influence Decreases 767 | 10 380 225 152 Time Decay 727 | 10 360 205 152 Lost Part 40 | . 20 20 . Squads Dispatched 2 | . 2 . . Investigation 1 | . 1 . . Extermination . | . . . . Reinforcement 1 | . 1 . . Assault . | . . . . Garrison . | . . . . Intercept . | . . . . Searches Triggered . | . . . . Construction Impeded . | . . . . Haulers Reinforced . | . . . . Active Scanning Responses . | . . . . Cargo Convoy Interrupts . | . . . . Stealth | -11 -10 -10 -7 --------- Run | Yrd Mat Sub Rec Distress Signals 2 | . 2 . . Communications Jammed . | . . . . Distress Signals . | . . . . Times Spotted 39 | . 20 16 3 Peak Tracking Total 6 | . 4 6 3 Tactical Retreats 4 | . 1 3 . Traps | -11 -10 -10 -7 ------- Run | Yrd Mat Sub Rec Traps Triggered 2 | . 1 1 . Indirectly . | . . . . Trap Hack Attempts . | . . . . Triggered . | . . . . Disarmed . | . . . . Reprogrammed . | . . . . Reused . | . . . . Traps Extracted . | . . . . Installed . | . . . . Triggered . | . . . . Machines | -11 -10 -10 -7 ---------- Run | Yrd Mat Sub Rec Machines Disabled 8 | . 4 4 . Max in Single Turn 3 | . 3 1 . Machines Repaired . | . . . . Machines Dismantled . | . . . . Machines Sabotaged . | . . . . Overloaded Fab Kills . | . . . . Hacking | -11 -10 -10 -7 --------- Run | Yrd Mat Sub Rec Machines Accessed 15 | . 5 1 9 Terminals 10 | . 4 . 6 Fabricators . | . . . . Repair Stations . | . . . . Recycling Units 4 | . 1 . 3 Scanalyzers . | . . . . Garrison Access . | . . . . Total Hacks 39 | . 10 4 25 Successful 18 | . 6 4 8 Failed 21 | . 4 . 17 Catastrophic 3 | . . . 3 Database Lockouts . | . . . . Manual 25 | . 7 . 18 Terminals 26 | . 7 . 19 Fabricators . | . . . . Repair Stations . | . . . . Recycling Units 9 | . 3 . 6 Scanalyzers . | . . . . Garrison Access . | . . . . Terminal Hacks 9 | . 2 4 3 Record 4 | . . 4 . Part Schematic 2 | . . . 2 Branch Access Points 1 | . 1 . . Terminal Index 1 | . . . 1 Hauler Manifests 1 | . 1 . . Fabricator Hacks . | . . . . Repair Station Hacks . | . . . . Recycling Unit Hacks 1 | . . . 1 Retrieve Components 1 | . . . 1 Scanalyzer . | . . . . Garrison Access Hacks . | . . . . Unauthorized Hacks 8 | . 4 . 4 Terminals 3 | . 2 . 1 Botnet 3 | . 2 . 1 Fabricators . | . . . . Repair Stations . | . . . . Recycling Units 5 | . 2 . 3 Recyclers 1 | . 1 . . Mask 1 | . 1 . . Tunnel 3 | . . . 3 Scanalyzers . | . . . . Garrison Access . | . . . . Data Cores Recovered . | . . . . Used . | . . . . Hacking Detections 12 | . 5 . 7 Full Trace Events 5 | . . . 5 Feedback Events . | . . . . Feedback Blocked . | . . . . Robot Schematics Acquired . | . . . . Robots Built . | . . . . Authchips . | . . . . Time . | . . . . Total Robot Build Rating . | . . . . Part Schematics Acquired 2 | . . . 2 Parts Built . | . . . . Authchips . | . . . . Time . | . . . . Total Part Build Rating . | . . . . Part Studies Acquired . | . . . . Parts Repaired . | . . . . Time . | . . . . Parts Recycled . | . . . . Recycled Matter . | . . . . Retrieved Matter . | . . . . Retrieved Components 2 | . . . 2 Parts Scanalyzed . | . . . . Part Schematics Acquired . | . . . . Parts Damaged . | . . . . Bothacking | -11 -10 -10 -7 ------------ Run | Yrd Mat Sub Rec Used RIF Installer . | . . . . Robots Hacked . | . . . . Non-combat . | . . . . Combat . | . . . . Robot Hacks Applied . | . . . . Relay Couplers Released . | . . . . Fabnet Peak Effective % . | . . . . Robots Rewired . | . . . . Allies Hacked . | . . . . Hacks Repelled . | . . . . Allies | -11 -10 -10 -7 -------- Run | Yrd Mat Sub Rec Total Allies . | . . . . Largest Group . | . . . . Highest-Rated Group . | . . . . Highest-Rated Ally . | . . . . Total Orders . | . . . . Ally Attacks . | . . . . Total Damage . | . . . . Kills . | . . . . Allies Corrupted . | . . . . Allies Melted . | . . . . Intel | -11 -10 -10 -7 ------- Run | Yrd Mat Sub Rec Active Infowar (turns) 2605 | 3 732 1870 . Optics 658 | . . 658 . Terrain 330 | 3 327 . . Seismic 1617 | . 405 1212 . Robot Analysis Total . | . . . . Derelict Logs Recovered 2 | . . 2 . Drone Launches . | . . . . Drone Recoveries . | . . . . Exploration | -11 -10 -10 -7 ------------- Run | Yrd Mat Sub Rec Turns Passed 4907 | 68 1235 2944 660 Spaces Moved 2518 | 39 669 1302 508 Core 5 | 5 . . . Treads . | . . . . Legs 2513 | 34 669 1302 508 Wheels . | . . . . Hover . | . . . . Flight . | . . . . Fastest Speed 50 | 50 120 120 120 Average Speed 175 | 111 154 208 120 Slowest Speed 260 | 120 190 260 260 Overloaded Moves . | . . . . Propulsion Burnouts . | . . . . Robots Hopped . | . . . . Potential Cave-ins . | . . . . Cave-ins Triggered . | . . . . Exploration Rate (%) 63 | 4 87 69 92 Regions Visited 3 Branch Regions 2 Pre-discovered Areas 3 | . . . 3 Known Exits Taken . | . . . . Unknown Exits Taken 3 | 1 1 1 . Scrap Searched 3 | . . 3 . Spaces Dug . | . . . . Terrain Destroyed 29 | . 16 12 1 Melee . | . . . . Projectile 3 | . 2 . 1 AOE 26 | . 14 12 . Terrain Rammed . | . . . . Walls Destroyed . | . . . . Machines Disabled . | . . . . Actions | -11 -10 -10 -7 --------- Run | Yrd Mat Sub Rec Total 2791 | 54 791 1406 540 Wait 48 | 3 30 10 5 Move 2515 | 38 668 1301 508 Hop . | . . . . Pick Up 32 | 3 14 9 6 Fast Attach 19 | 6 6 5 2 Attach 10 | 1 1 7 1 Detach 4 | . 2 1 1 Swap 13 | . 8 5 . Drop 29 | . 16 7 6 Fire 114 | 3 45 57 9 Melee 4 | . . 4 . Ram . | . . . . Kick 3 | . 1 . 2 Crush . | . . . . Escape Stasis . | . . . . Rewire . | . . . . Trap . | . . . . Miscellaneous . | . . . . Route ------- -11/Scrapyard -10/Materials (discovered 4 exits: [*Mat x2] / *Min / *Sub) -10/Subcaves (discovered 2 exits: [*Mat] / *Rec) -7/Recycling (discovered 1 exit: [*Fac]) History --------- Turn | Location | Event 4 | -11/Scrapyard | Discovered new exit (range 16) 69 | -11/Scrapyard | Entered Materials 269 | -10/Materials | Discovered new exit (range 16) 300 | -10/Materials | Build established: Mutant 354 | -10/Materials | Discovered new exit (range 16) 596 | -10/Materials | Identified exit to Mines 752 | -10/Materials | Discovered new exit (range 16) 1295 | -10/Materials | Discovered new exit (range 6) 1304 | -10/Materials | Entered Subcaves 1305 | -10/Subcaves | Approached by a straggling Scientist 1310 | -10/Subcaves | Learned Materials machine intel 1360 | -10/Subcaves | Discovered new exit (range 7) 1386 | -10/Subcaves | Visited Clippyterm 1392 | -10/Subcaves | Learned Factory garrison access intel 1496 | -10/Subcaves | Disturbed a concealed Subdweller 1911 | -10/Subcaves | Core integrity fell below 50% 2067 | -10/Subcaves | Discovered new exit (range 11) 2143 | -10/Subcaves | Shifting Twisted Machinery released Flamer 2163 | -10/Subcaves | Shifting Twisted Machinery released Flamer 2280 | -10/Subcaves | Learned Materials emergency access door positions 3311 | -10/Subcaves | Lost 3 parts (1n2w) 3599 | -10/Subcaves | Visited 4L-MR0's lab 3625 | -10/Subcaves | Found Prototype Power Core 3625 | -10/Subcaves | Identified Meta Core 3626 | -10/Subcaves | Attached Meta Core, gained temporary slots: Propulsion, Utility, Weapon 4248 | -10/Subcaves | Entered Recycling 4560 | -7/Recycling | Discovered new exit (range 15) 4900 | -7/Recycling | Core integrity fell below 20% 4908 | -7/Recycling | Destroyed by Y-54 Guardian with Gatling Laser Last Messages --------------- >>Schematic(Triangulator) Downloading schematic... Triangulator Rating: 5 Schematic downloaded. >>Schematic(Hacking Suite) Downloading schematic... Hacking Suite Rating: 3 Schematic downloaded. 04731_ Connecting with Recycling Unit... >>Force(Tunnel) DISCOVERED[-1/Command] 04755_ Connecting with Terminal... >>Index(Terminals) Found 6 terminals. Downloaded coordinate data. 04775_ Kicked R-06 Scavenger. 04887_ L-41 Fighter springs to life. 04905_ Imp. Carbon-fiber Leg destroyed. Map ----- +----------------------------------------------------+ | ???????? ##????#! ! #??? | | ???????? ?????# ! ! #??? | | ????????? #?????#! ! #??? | | ?????????# ###???# #??? | | ?????????# ]]#???# ! #??? | | ?????????# ]]#???#!! ! !#??? | | ?????????# ]]#???# !#??? | | ???####### #?????#####+#######? | | ???# #????????# #? | | ???# ######## #????????# #? | | ???# #??????# #????????# ## | | ???# #??????# #????????## | | ???# #??????# #?????????# | | ???# #??????#%#?????????# | | ???# #????###+########### | | ???# #????# # """ "" | | ???# #????# # """ "" | | ???# #????# + """ "" | | ???# #???# # | | ???# #################### | | ???# ? | | ???#### ## #####??????+##+######## | | ??????# #??????????? !!????# | | ?????##Y##???????? ! ! ! ???# | | ?????# #######% r i [ ???# | | ?????# @ Y% ! u Y |! !???# | | ?????# #######[ g ! ???# | | ?????#####????????#########??????# | | ?????????????????????????????????? | | ????????????????????????????#####? | | ????????????????????????????# #? | | ????????????????##??????????# ## | | ????############ #????????### ## | | ????# #????????#"" ## | | ????# #????????#T ## | | ????# #????????### T# | | ????# #??????????# ## | | ????# #??????????# ## | | ????# #??????????# ## | | ????# #????###???# ## | | ????# #?#### ##### ## | | ????# #?# # # | | ????# #?# # # | | ????# #?# # # | | ????# #?# # | | ?????######+######?# + | | ????????# #????# # | | ????????# ###### # | | ????????# / # | | ????????# ###### # ## | +----------------------------------------------------+ Best States ------------- Heat Dissipation 35 Energy Generation 17 Energy Capacity 250 Matter Stores 300 Matter Capacity 300 Sight Range 21 Terrain Scan Range 16 Terrain Scan Density 10 Evasion (%) 55 Defensive Hacking 10 Item Schematics ----------------- Triangulator | -7/Recycling | Hacked Hacking Suite | -7/Recycling | Hacked Robot Schematics ------------------ None Fabricated ------------ Nothing Repaired ---------- Nothing Studied --------- None Alien Tech Used ----------------- None Achievements -------------- None Challenges ------------ None Game ------ Seed ThermicReinforcedArticulator Manual? 0 Play Time 00:38:37 Cumulative 127.0 hours Start 2026.04.01 @ 12:31:24 End 2026.04.01 @ 13:14:35 Sessions 1 Manual Loads 0 Difficulty Rogue Special Mode None Game No. 122 Rogue 77 Adventurer 45 Explorer 0 Win Type - Total 3 Types 2/0/0/1/0/0/0/0/0/0 Lore% 68 Gallery% 57 Achievement% 42 Wizard Run 0 Options --------- Layout 0 ASCII 0 Keyboard 1 Movement Numpad Keybinds 0 Fullscreen 1 Font 24/Smallcaps Map View 76x50 Zoom Use 0% Tactical HUD 1 Map Filters NONE Filters NONE Steam 1 RUN: 4cc68b07-9a7b-476d-84db-86161596f511